[Event "*** Titled Tuesday Blitz"]
[Site "Chess.com"]
[Date "2021.04.20"]
[Round "9"]
[White "Irishchessman16"]
[Black "Qvalda"]
[Result "0-1"]
[WhiteElo "2276"]
[BlackElo "2428"]
[TimeControl "180+1"]
[EndTime "11:45:41 PDT"]
[Termination "Qvalda won on time"]

1. e4 {[%clk 0:02:58.1]} 1... d6 {[%clk 0:02:59.5]} 2. d4 {[%clk 0:02:57.7]}
2... Nf6 {[%clk 0:03:00.1]} 3. Nc3 {[%clk 0:02:57.8]} 3... g6 {[%clk 0:03:00.7]}
4. Be3 {[%clk 0:02:57.2]} 4... c6 {[%clk 0:02:59.5]} 5. Qd2 {[%clk 0:02:57.2]}
5... Nbd7 {[%clk 0:02:58.3]} 6. O-O-O {[%clk 0:02:56.6]} 6... b5 {[%clk
0:02:57.9]} 7. f3 {[%clk 0:02:56.6]} 7... Qa5 {[%clk 0:02:47.8]} 8. Kb1 {[%clk
0:02:56.2]} 8... b4 {[%clk 0:02:47.9]} 9. Nce2 {[%clk 0:02:55.6]} 9... Ba6
{[%clk 0:02:38.2]} 10. Nc1 {[%clk 0:02:55.7]} 10... Bxf1 {[%clk 0:02:36.9]} 11.
Rxf1 {[%clk 0:02:56.6]} 11... Qb5 {[%clk 0:02:33.9]} 12. Qd3 {[%clk 0:02:53.3]}
12... Qxd3 {[%clk 0:02:29]} 13. Nxd3 {[%clk 0:02:54.2]} 13... a5 {[%clk
0:02:27.2]} 14. Ne2 {[%clk 0:02:49.3]} 14... Bg7 {[%clk 0:02:26.5]} 15. g4
{[%clk 0:02:47.2]} 15... h6 {[%clk 0:02:15.5]} 16. h4 {[%clk 0:02:44.9]} 16...
O-O-O {[%clk 0:02:05.1]} 17. h5 {[%clk 0:02:42.3]} 17... g5 {[%clk 0:01:59.4]}
18. Ng3 {[%clk 0:02:26.5]} 18... e6 {[%clk 0:01:58.2]} 19. c3 {[%clk 0:02:25.6]}
19... bxc3 {[%clk 0:01:56.8]} 20. Rc1 {[%clk 0:02:19.6]} 20... Kb7 {[%clk
0:01:02.4]} 21. Rxc3 {[%clk 0:02:14.4]} 21... Nb6 {[%clk 0:01:02.2]} 22. Rhc1
{[%clk 0:02:03.3]} 22... Rc8 {[%clk 0:01:00.5]} 23. Rb3 {[%clk 0:01:51.4]} 23...
Nd7 {[%clk 0:00:58.8]} 24. e5 {[%clk 0:01:27.5]} 24... d5 {[%clk 0:00:51.5]} 25.
Nc5+ {[%clk 0:01:23]} 25... Kc7 {[%clk 0:00:49.2]} 26. Na6+ {[%clk 0:01:06.6]}
26... Kb7 {[%clk 0:00:43.2]} 27. Nc5+ {[%clk 0:01:06.2]} 27... Kc7 {[%clk
0:00:39.3]} 28. Bd2 {[%clk 0:01:00.9]} 28... Ra8 {[%clk 0:00:31.8]} 29. Rb5
{[%clk 0:00:42.3]} 29... Nxc5 {[%clk 0:00:17.1]} 30. Rbxc5 {[%clk 0:00:37.5]}
30... Nc4 {[%clk 0:00:17.4]} 31. R1xc4 {[%clk 0:00:37.2]} 31... dxc4 {[%clk
0:00:16.8]} 32. Bxa5+ {[%clk 0:00:37.7]} 32... Kd7 {[%clk 0:00:16.1]} 33. Bc3
{[%clk 0:00:34.9]} 33... Ra4 {[%clk 0:00:14.6]} 34. Ne4 {[%clk 0:00:32.5]} 34...
Bf8 {[%clk 0:00:13.1]} 35. a3 {[%clk 0:00:21.5]} 35... Be7 {[%clk 0:00:07.2]}
36. Bb4 {[%clk 0:00:17.3]} 36... Rxb4 {[%clk 0:00:04.8]} 37. axb4 {[%clk
0:00:16.4]} 37... Bxc5 {[%clk 0:00:05.1]} 38. Nxc5+ {[%clk 0:00:12.3]} 38... Kc7
{[%clk 0:00:05]} 39. Kc2 {[%clk 0:00:11.9]} 39... Kb6 {[%clk 0:00:04.2]} 40. Kc3
{[%clk 0:00:12.4]} 40... Kb5 {[%clk 0:00:04]} 41. Nb7 {[%clk 0:00:10.3]} 41...
Ra8 {[%clk 0:00:03]} 42. Nd6+ {[%clk 0:00:09.6]} 42... Kb6 {[%clk 0:00:03.3]}
43. Nxf7 {[%clk 0:00:09]} 43... Rf8 {[%clk 0:00:03.4]} 44. Nxh6 {[%clk
0:00:08.3]} 44... Rxf3+ {[%clk 0:00:02.9]} 45. Kxc4 {[%clk 0:00:08.9]} 45... Rf4
{[%clk 0:00:02.4]} 46. b3 {[%clk 0:00:08.1]} 46... Re4 {[%clk 0:00:01.6]} 47.
Kd3 {[%clk 0:00:07.5]} 47... Rf4 {[%clk 0:00:01.8]} 48. Ke3 {[%clk 0:00:06.6]}
48... Kb5 {[%clk 0:00:02.3]} 49. Ng8 {[%clk 0:00:05.4]} 49... Rxg4 {[%clk
0:00:02.5]} 50. h6 {[%clk 0:00:05.2]} 50... Rh4 {[%clk 0:00:02.5]} 51. Kf3
{[%clk 0:00:04.8]} 51... Kxb4 {[%clk 0:00:02.5]} 52. Kg3 {[%clk 0:00:03.2]}
52... Kxb3 {[%clk 0:00:02.9]} 53. Ne7 {[%clk 0:00:01.4]} 53... Rxh6 {[%clk
0:00:02.4]} 0-1

[Event "*** Titled Tuesday Blitz"]
[Site "Chess.com"]
[Date "2021.04.20"]
[Round "9"]
[White "WisdomGame"]
[Black "Frogo47"]
[Result "1/2-1/2"]
[WhiteElo "2097"]
[BlackElo "2534"]
[TimeControl "180+1"]
[EndTime "11:45:43 PDT"]
[Termination "Game drawn by stalemate"]

1. e4 {[%clk 0:02:53.8]} 1... c5 {[%clk 0:02:57.8]} 2. Nf3 {[%clk 0:02:53.4]}
2... d6 {[%clk 0:02:57.6]} 3. d3 {[%clk 0:02:51.7]} 3... Nf6 {[%clk 0:02:57]} 4.
Nbd2 {[%clk 0:02:52.6]} 4... g6 {[%clk 0:02:57.4]} 5. g3 {[%clk 0:02:52.5]} 5...
Bg7 {[%clk 0:02:57.7]} 6. Bg2 {[%clk 0:02:53.4]} 6... O-O {[%clk 0:02:58]} 7.
O-O {[%clk 0:02:53.8]} 7... Nc6 {[%clk 0:02:58.3]} 8. Qe2 {[%clk 0:02:52.9]}
8... Rb8 {[%clk 0:02:58.5]} 9. a4 {[%clk 0:02:52.6]} 9... a6 {[%clk 0:02:58.2]}
10. Nh4 {[%clk 0:02:49.8]} 10... b5 {[%clk 0:02:57.7]} 11. axb5 {[%clk
0:02:50.7]} 11... axb5 {[%clk 0:02:57.6]} 12. f4 {[%clk 0:02:51.3]} 12... Nd4
{[%clk 0:02:58.1]} 13. Qd1 {[%clk 0:02:51.7]} 13... b4 {[%clk 0:02:53.4]} 14.
Nhf3 {[%clk 0:02:44.6]} 14... Nd7 {[%clk 0:02:51.1]} 15. Nxd4 {[%clk 0:02:40.9]}
15... Bxd4+ {[%clk 0:02:50.3]} 16. Kh1 {[%clk 0:02:41.4]} 16... Nb6 {[%clk
0:02:47]} 17. Nf3 {[%clk 0:01:58.4]} 17... Bg7 {[%clk 0:02:46.4]} 18. Rb1 {[%clk
0:01:56.8]} 18... Na4 {[%clk 0:02:32.9]} 19. e5 {[%clk 0:01:49.2]} 19... Nb6
{[%clk 0:02:29.1]} 20. Be3 {[%clk 0:01:21.6]} 20... Nd5 {[%clk 0:02:26.8]} 21.
Bg1 {[%clk 0:01:18.6]} 21... Bb7 {[%clk 0:02:24.6]} 22. Re1 {[%clk 0:01:11.1]}
22... Re8 {[%clk 0:02:16.6]} 23. Qd2 {[%clk 0:00:56.2]} 23... Qc7 {[%clk
0:02:14.5]} 24. e6 {[%clk 0:00:48.7]} 24... f5 {[%clk 0:02:12]} 25. Ng5 {[%clk
0:00:14.2]} 25... Bc6 {[%clk 0:02:07.3]} 26. Qe2 {[%clk 0:00:11.3]} 26... Ra8
{[%clk 0:01:58.2]} 27. Qf3 {[%clk 0:00:03.6]} 27... Ra6 {[%clk 0:01:48.9]} 28.
g4 {[%clk 0:00:03.8]} 28... fxg4 {[%clk 0:01:42.7]} 29. Qxg4 {[%clk 0:00:04.7]}
29... Rf8 {[%clk 0:01:41.6]} 30. Qh4 {[%clk 0:00:02.6]} 30... Nf6 {[%clk
0:01:41.4]} 31. Nf7 {[%clk 0:00:02.1]} 31... Bxg2+ {[%clk 0:01:30.3]} 32. Kxg2
{[%clk 0:00:03]} 32... d5 {[%clk 0:01:30.5]} 33. Re5 {[%clk 0:00:01.6]} 33... d4
{[%clk 0:01:24.8]} 34. Rbe1 {[%clk 0:00:02.1]} 34... Ra2 {[%clk 0:01:16.5]} 35.
Bf2 {[%clk 0:00:02.1]} 35... Rxb2 {[%clk 0:01:16.1]} 36. R1e2 {[%clk 0:00:03]}
36... b3 {[%clk 0:01:09.3]} 37. cxb3 {[%clk 0:00:02.9]} 37... Qb7+ {[%clk
0:01:07]} 38. Kg1 {[%clk 0:00:02.3]} 38... Rxe2 {[%clk 0:01:04.7]} 39. Rxe2
{[%clk 0:00:03.2]} 39... Qxb3 {[%clk 0:01:05]} 40. f5 {[%clk 0:00:03.4]} 40...
Qd1+ {[%clk 0:01:04.8]} 41. Re1 {[%clk 0:00:03.4]} 41... Qxd3 {[%clk 0:01:05.1]}
42. fxg6 {[%clk 0:00:04.3]} 42... Qxg6+ {[%clk 0:01:05.1]} 43. Bg3 {[%clk
0:00:04.3]} 43... d3 {[%clk 0:00:58.5]} 44. Ne5 {[%clk 0:00:04.1]} 44... Qf5
{[%clk 0:00:51.4]} 45. Rf1 {[%clk 0:00:04.5]} 45... Qh5 {[%clk 0:00:49.1]} 46.
Qxh5 {[%clk 0:00:04.4]} 46... Nxh5 {[%clk 0:00:49.2]} 47. Rxf8+ {[%clk
0:00:05.3]} 47... Bxf8 {[%clk 0:00:49.5]} 48. Nxd3 {[%clk 0:00:06.2]} 48... c4
{[%clk 0:00:48.1]} 49. Nb4 {[%clk 0:00:02.3]} 49... Ng7 {[%clk 0:00:44.7]} 50.
Nc2 {[%clk 0:00:01]} 50... Nxe6 {[%clk 0:00:44.5]} 51. Be5 {[%clk 0:00:01.9]}
51... Bg7 {[%clk 0:00:42.9]} 52. Bg3 {[%clk 0:00:02.5]} 52... Nd4 {[%clk
0:00:41.4]} 53. Nxd4 {[%clk 0:00:02]} 53... Bxd4+ {[%clk 0:00:40.9]} 54. Kf1
{[%clk 0:00:02.9]} 54... Kf7 {[%clk 0:00:40.9]} 55. Bf4 {[%clk 0:00:03.2]} 55...
Ke6 {[%clk 0:00:41.4]} 56. Bc1 {[%clk 0:00:04.1]} 56... Kd5 {[%clk 0:00:42]} 57.
Ke2 {[%clk 0:00:04.9]} 57... e5 {[%clk 0:00:42.9]} 58. Kf3 {[%clk 0:00:04.7]}
58... e4+ {[%clk 0:00:43.8]} 59. Ke2 {[%clk 0:00:04.8]} 59... c3 {[%clk
0:00:44.2]} 60. Kd1 {[%clk 0:00:04.6]} 60... Kc4 {[%clk 0:00:41.9]} 61. Kc2
{[%clk 0:00:04.8]} 61... e3 {[%clk 0:00:42.5]} 62. h3 {[%clk 0:00:05]} 62... e2
{[%clk 0:00:42.5]} 63. Bd2 {[%clk 0:00:04.4]} 63... cxd2 {[%clk 0:00:41.8]} 64.
Kxd2 {[%clk 0:00:05.3]} 64... Bc5 {[%clk 0:00:37.1]} 65. Kxe2 {[%clk 0:00:05.7]}
65... Kd5 {[%clk 0:00:38]} 66. Kf3 {[%clk 0:00:06.6]} 66... Ke5 {[%clk
0:00:38.5]} 67. Kg2 {[%clk 0:00:07.5]} 67... Kf4 {[%clk 0:00:39]} 68. Kh1 {[%clk
0:00:08.4]} 68... Kg3 {[%clk 0:00:38.7]} 69. h4 {[%clk 0:00:07.4]} 69... h5
{[%clk 0:00:37.1]} 1/2-1/2

[Event "*** Titled Tuesday Blitz"]
[Site "Chess.com"]
[Date "2021.04.20"]
[Round "9"]
[White "chessdjw"]
[Black "mac0504"]
[Result "1-0"]
[WhiteElo "2747"]
[BlackElo "2600"]
[TimeControl "180+1"]
[EndTime "11:45:45 PDT"]
[Termination "chessdjw won by resignation"]

1. e4 {[%clk 0:02:15.3]} 1... c5 {[%clk 0:02:59]} 2. Nf3 {[%clk 0:02:15.6]} 2...
e6 {[%clk 0:02:59.6]} 3. d4 {[%clk 0:02:15.4]} 3... cxd4 {[%clk 0:03:00.5]} 4.
Nxd4 {[%clk 0:02:16.3]} 4... Nc6 {[%clk 0:03:01.4]} 5. Nc3 {[%clk 0:02:16.6]}
5... Qc7 {[%clk 0:03:01.8]} 6. a3 {[%clk 0:02:14.5]} 6... a6 {[%clk 0:03:00.1]}
7. g4 {[%clk 0:02:09.8]} 7... d6 {[%clk 0:02:51.8]} 8. g5 {[%clk 0:02:06.2]}
8... Nge7 {[%clk 0:02:41]} 9. h4 {[%clk 0:02:04.6]} 9... Nxd4 {[%clk 0:02:41]}
10. Qxd4 {[%clk 0:02:04.1]} 10... Nc6 {[%clk 0:02:41.9]} 11. Qd3 {[%clk
0:01:53.5]} 11... Be7 {[%clk 0:02:29.9]} 12. f4 {[%clk 0:01:53.4]} 12... Bd7
{[%clk 0:02:24.5]} 13. Be3 {[%clk 0:01:52.2]} 13... O-O-O {[%clk 0:02:05.2]} 14.
Na4 {[%clk 0:01:33.7]} 14... Ne5 {[%clk 0:01:52.2]} 15. Nb6+ {[%clk 0:01:30.2]}
15... Qxb6 {[%clk 0:01:51.3]} 16. Bxb6 {[%clk 0:01:30.1]} 16... Nxd3+ {[%clk
0:01:51.5]} 17. cxd3 {[%clk 0:01:27.4]} 17... Rde8 {[%clk 0:01:48]} 18. Rc1+
{[%clk 0:01:25.8]} 18... Bc6 {[%clk 0:01:47.1]} 19. Bh3 {[%clk 0:01:26.2]} 19...
Bd8 {[%clk 0:01:43.4]} 20. Bd4 {[%clk 0:01:21.2]} 20... f6 {[%clk 0:01:32.6]}
21. Ke2 {[%clk 0:01:19.4]} 21... Kd7 {[%clk 0:01:18.7]} 22. Rhg1 {[%clk
0:01:16]} 22... Rhg8 {[%clk 0:01:12.4]} 23. b4 {[%clk 0:01:06.2]} 23... Ke7
{[%clk 0:01:11.1]} 24. Bg4 {[%clk 0:01:00.4]} 24... Kf7 {[%clk 0:00:46.8]} 25.
Bh5+ {[%clk 0:00:43.1]} 25... g6 {[%clk 0:00:46.9]} 26. Bf3 {[%clk 0:00:43.7]}
26... e5 {[%clk 0:00:40.6]} 27. Be3 {[%clk 0:00:43.7]} 27... exf4 {[%clk
0:00:39.4]} 28. Bxf4 {[%clk 0:00:44.6]} 28... d5 {[%clk 0:00:34.6]} 29. Rgd1
{[%clk 0:00:28.1]} 29... Bb6 {[%clk 0:00:19.9]} 30. Be3 {[%clk 0:00:18.7]} 30...
dxe4 {[%clk 0:00:17.3]} 31. dxe4 {[%clk 0:00:15.9]} 31... Bxe3 {[%clk 0:00:07]}
32. Kxe3 {[%clk 0:00:16.8]} 32... f5 {[%clk 0:00:06.5]} 33. Rd4 {[%clk
0:00:12.1]} 33... Re7 {[%clk 0:00:06]} 34. Kf4 {[%clk 0:00:11.9]} 34... fxe4
{[%clk 0:00:06.3]} 35. Bxe4 {[%clk 0:00:12.3]} 35... Bxe4 {[%clk 0:00:04.5]} 36.
Rxe4 {[%clk 0:00:13.2]} 36... Rxe4+ {[%clk 0:00:04.1]} 37. Kxe4 {[%clk
0:00:14.1]} 37... Re8+ {[%clk 0:00:04]} 38. Kd5 {[%clk 0:00:14.4]} 38... Rd8+
{[%clk 0:00:03.3]} 39. Ke5 {[%clk 0:00:15]} 39... Re8+ {[%clk 0:00:03.6]} 40.
Kd6 {[%clk 0:00:15.4]} 40... Re6+ {[%clk 0:00:03.4]} 41. Kd5 {[%clk 0:00:15.3]}
41... Re7 {[%clk 0:00:02.8]} 42. Rf1+ {[%clk 0:00:15.7]} 42... Ke8 {[%clk
0:00:03.1]} 43. Rf6 {[%clk 0:00:14.8]} 43... Kd7 {[%clk 0:00:03.4]} 44. Rd6+
{[%clk 0:00:14.7]} 44... Kc7 {[%clk 0:00:03.2]} 45. Re6 {[%clk 0:00:15.1]} 45...
Rd7+ {[%clk 0:00:02]} 46. Ke5 {[%clk 0:00:15.6]} 46... b5 {[%clk 0:00:01.9]} 47.
Kf6 {[%clk 0:00:15]} 47... Rd4 {[%clk 0:00:01.8]} 48. Re7+ {[%clk 0:00:15.4]}
48... Kc6 {[%clk 0:00:01.6]} 49. Rxh7 {[%clk 0:00:15.7]} 49... Rd3 {[%clk
0:00:01.4]} 50. Kxg6 {[%clk 0:00:15.1]} 50... Rxa3 {[%clk 0:00:01.8]} 51. h5
{[%clk 0:00:15.4]} 51... a5 {[%clk 0:00:01.9]} 52. bxa5 {[%clk 0:00:14.8]} 52...
b4 {[%clk 0:00:02.5]} 53. Rh8 {[%clk 0:00:14.1]} 53... b3 {[%clk 0:00:02.7]} 54.
Rb8 {[%clk 0:00:14.1]} 54... Kc7 {[%clk 0:00:02.7]} 55. Rb4 {[%clk 0:00:14.1]}
55... Rxa5 {[%clk 0:00:02.1]} 56. Rxb3 {[%clk 0:00:13.3]} 56... Kd7 {[%clk
0:00:03]} 57. h6 {[%clk 0:00:13.2]} 1-0

[Event "*** Titled Tuesday Blitz"]
[Site "Chess.com"]
[Date "2021.04.20"]
[Round "9"]
[White "fastestmindalive"]
[Black "SchmakAttack"]
[Result "1/2-1/2"]
[WhiteElo "2755"]
[BlackElo "2634"]
[TimeControl "180+1"]
[EndTime "11:45:49 PDT"]
[Termination "Game drawn by repetition"]

1. e4 {[%clk 0:03:00.9]} 1... e6 {[%clk 0:03:00.1]} 2. d4 {[%clk 0:03:00.7]}
2... d5 {[%clk 0:03:00.3]} 3. Nc3 {[%clk 0:03:01.6]} 3... Nf6 {[%clk 0:03:00.3]}
4. Bg5 {[%clk 0:03:00.9]} 4... dxe4 {[%clk 0:03:00.2]} 5. Nxe4 {[%clk
0:02:59.6]} 5... Be7 {[%clk 0:03:00.6]} 6. Bxf6 {[%clk 0:02:59.7]} 6... gxf6
{[%clk 0:03:00.4]} 7. g3 {[%clk 0:02:59.2]} 7... f5 {[%clk 0:02:56.7]} 8. Nc3
{[%clk 0:02:58.6]} 8... Nc6 {[%clk 0:02:39.4]} 9. Nf3 {[%clk 0:02:56.5]} 9...
Bf6 {[%clk 0:02:30.7]} 10. Ne2 {[%clk 0:02:56.5]} 10... b6 {[%clk 0:02:12.9]}
11. Bg2 {[%clk 0:02:56.8]} 11... Bb7 {[%clk 0:02:13.4]} 12. O-O {[%clk
0:02:57.7]} 12... Qd6 {[%clk 0:02:11.6]} 13. c3 {[%clk 0:02:55.3]} 13... O-O-O
{[%clk 0:02:11.6]} 14. a4 {[%clk 0:02:55.4]} 14... h5 {[%clk 0:02:09.2]} 15. h4
{[%clk 0:02:51.7]} 15... Ne7 {[%clk 0:02:00.9]} 16. a5 {[%clk 0:02:47.6]} 16...
Ng6 {[%clk 0:02:00]} 17. axb6 {[%clk 0:02:46.4]} 17... axb6 {[%clk 0:02:00.9]}
18. Ne1 {[%clk 0:02:43.2]} 18... f4 {[%clk 0:01:45.9]} 19. Qa4 {[%clk
0:02:38.6]} 19... c6 {[%clk 0:01:18.7]} 20. Nd3 {[%clk 0:02:33]} 20... fxg3
{[%clk 0:01:08.4]} 21. fxg3 {[%clk 0:02:33.9]} 21... Bxh4 {[%clk 0:01:08.5]} 22.
Rxf7 {[%clk 0:02:31.4]} 22... Rd7 {[%clk 0:01:00.2]} 23. Rxd7 {[%clk 0:02:20.1]}
23... Qxd7 {[%clk 0:01:00.5]} 24. gxh4 {[%clk 0:02:11.4]} 24... Nxh4 {[%clk
0:01:01.4]} 25. Ne5 {[%clk 0:01:40.7]} 25... Qg7 {[%clk 0:00:57.6]} 26. Nf4
{[%clk 0:01:40.5]} 26... Nxg2 {[%clk 0:00:54]} 27. Nfg6 {[%clk 0:00:25.1]} 27...
Nf4 {[%clk 0:00:50.7]} 28. Kh2 {[%clk 0:00:23.7]} 28... Nxg6 {[%clk 0:00:45.1]}
29. Rg1 {[%clk 0:00:24]} 29... Rf8 {[%clk 0:00:18.9]} 30. Rxg6 {[%clk
0:00:21.9]} 30... Rf2+ {[%clk 0:00:18.8]} 31. Kg1 {[%clk 0:00:20.2]} 31... Qf8
{[%clk 0:00:18.8]} 32. Qd1 {[%clk 0:00:18.3]} 32... Qf4 {[%clk 0:00:13.6]} 33.
Rg8+ {[%clk 0:00:09.6]} 33... Kc7 {[%clk 0:00:14.1]} 34. Rg7+ {[%clk 0:00:10]}
34... Kc8 {[%clk 0:00:14.8]} 35. Rg8+ {[%clk 0:00:04]} 35... Kc7 {[%clk
0:00:13.8]} 36. Rg7+ {[%clk 0:00:03.9]} 36... Kc8 {[%clk 0:00:08.3]} 37. Rg2
{[%clk 0:00:04]} 37... Rxg2+ {[%clk 0:00:07]} 38. Kxg2 {[%clk 0:00:04.9]} 38...
c5+ {[%clk 0:00:07.5]} 39. Kh3 {[%clk 0:00:04.8]} 39... Qe3+ {[%clk 0:00:03.3]}
40. Kh4 {[%clk 0:00:04.5]} 40... cxd4 {[%clk 0:00:03.5]} 41. cxd4 {[%clk
0:00:05.1]} 41... Be4 {[%clk 0:00:03.1]} 42. Kxh5 {[%clk 0:00:04.3]} 42... Bf5
{[%clk 0:00:02]} 43. Qf3 {[%clk 0:00:01.6]} 43... Qxf3+ {[%clk 0:00:01.6]} 44.
Nxf3 {[%clk 0:00:02.5]} 44... Kd7 {[%clk 0:00:02.4]} 45. Kg5 {[%clk 0:00:02.9]}
45... Kd6 {[%clk 0:00:02.9]} 46. Kf4 {[%clk 0:00:02.9]} 46... Kd5 {[%clk
0:00:03.4]} 47. Ke3 {[%clk 0:00:03.4]} 47... Bh7 {[%clk 0:00:03.5]} 48. Nd2
{[%clk 0:00:02.5]} 48... Bf5 {[%clk 0:00:03.1]} 49. Nb1 {[%clk 0:00:02.3]} 49...
Kc4 {[%clk 0:00:03.2]} 50. Nd2+ {[%clk 0:00:02.4]} 50... Kd5 {[%clk 0:00:03]}
51. Nf1 {[%clk 0:00:02.6]} 51... Kc4 {[%clk 0:00:03.1]} 52. Nd2+ {[%clk
0:00:02.2]} 52... Kd5 {[%clk 0:00:03.2]} 1/2-1/2

[Event "*** Titled Tuesday Blitz"]
[Site "Chess.com"]
[Date "2021.04.20"]
[Round "9"]
[White "buhomurciano"]
[Black "canary2016"]
[Result "1-0"]
[WhiteElo "2192"]
[BlackElo "2011"]
[TimeControl "180+1"]
[EndTime "11:45:52 PDT"]
[Termination "buhomurciano won by checkmate"]

1. e4 {[%clk 0:03:00.9]} 1... c5 {[%clk 0:02:59]} 2. c3 {[%clk 0:02:54.5]} 2...
Nf6 {[%clk 0:02:57.1]} 3. e5 {[%clk 0:02:38.9]} 3... Nd5 {[%clk 0:02:56.6]} 4.
d4 {[%clk 0:02:39.2]} 4... cxd4 {[%clk 0:02:56.2]} 5. cxd4 {[%clk 0:02:39]} 5...
d6 {[%clk 0:02:55.5]} 6. Nf3 {[%clk 0:02:36.3]} 6... Nc6 {[%clk 0:02:54.6]} 7.
Bc4 {[%clk 0:02:35.7]} 7... Nb6 {[%clk 0:02:53.6]} 8. Bb5 {[%clk 0:02:35.6]}
8... Bd7 {[%clk 0:02:48.3]} 9. Nc3 {[%clk 0:01:57.9]} 9... e6 {[%clk 0:02:43.1]}
10. O-O {[%clk 0:01:50.7]} 10... Be7 {[%clk 0:02:42.1]} 11. Re1 {[%clk
0:01:39.3]} 11... O-O {[%clk 0:02:40.6]} 12. Bd3 {[%clk 0:01:23.5]} 12... Rc8
{[%clk 0:02:27.2]} 13. a3 {[%clk 0:01:03.7]} 13... dxe5 {[%clk 0:01:42.7]} 14.
dxe5 {[%clk 0:01:01.2]} 14... Na5 {[%clk 0:01:31.3]} 15. Qc2 {[%clk 0:00:49]}
15... g6 {[%clk 0:01:26.2]} 16. Bh6 {[%clk 0:00:47.5]} 16... Re8 {[%clk
0:01:25.6]} 17. Qe2 {[%clk 0:00:34.5]} 17... Nb3 {[%clk 0:01:21.9]} 18. Rad1
{[%clk 0:00:31.2]} 18... Qc7 {[%clk 0:01:16.8]} 19. h4 {[%clk 0:00:19.6]} 19...
Bc6 {[%clk 0:01:06.3]} 20. Ne4 {[%clk 0:00:19.3]} 20... Red8 {[%clk 0:00:58.7]}
21. h5 {[%clk 0:00:19.4]} 21... Bxe4 {[%clk 0:00:56.5]} 22. Bxe4 {[%clk
0:00:19.2]} 22... Rxd1 {[%clk 0:00:53.7]} 23. Rxd1 {[%clk 0:00:20.1]} 23... Qc4
{[%clk 0:00:45.3]} 24. Bd3 {[%clk 0:00:18.9]} 24... Qc7 {[%clk 0:00:40.1]} 25.
hxg6 {[%clk 0:00:18.7]} 25... fxg6 {[%clk 0:00:38.5]} 26. Bb1 {[%clk 0:00:12.9]}
26... Qc4 {[%clk 0:00:21.6]} 27. Qe3 {[%clk 0:00:08.8]} 27... Bc5 {[%clk
0:00:17.9]} 28. Qe1 {[%clk 0:00:06.9]} 28... Nd5 {[%clk 0:00:14.3]} 29. Ba2
{[%clk 0:00:07.3]} 29... a5 {[%clk 0:00:11.5]} 30. Nd2 {[%clk 0:00:07.6]} 30...
Qh4 {[%clk 0:00:08.1]} 31. Nxb3 {[%clk 0:00:05]} 31... Qxh6 {[%clk 0:00:07.9]}
32. Nxc5 {[%clk 0:00:05.6]} 32... Rxc5 {[%clk 0:00:08]} 33. Bxd5 {[%clk
0:00:06.2]} 33... Rxd5 {[%clk 0:00:08.2]} 34. Rxd5 {[%clk 0:00:06.9]} 34... exd5
{[%clk 0:00:08.7]} 35. e6 {[%clk 0:00:07.6]} 35... Qf8 {[%clk 0:00:08.4]} 36.
Qe5 {[%clk 0:00:07.7]} 36... Qe7 {[%clk 0:00:06.7]} 37. Qxd5 {[%clk 0:00:07.8]}
37... b6 {[%clk 0:00:06]} 38. Qe5 {[%clk 0:00:06.5]} 38... Kf8 {[%clk
0:00:06.1]} 39. g3 {[%clk 0:00:06.9]} 39... Kg8 {[%clk 0:00:06]} 40. Kg2 {[%clk
0:00:06.1]} 40... h6 {[%clk 0:00:06.2]} 41. g4 {[%clk 0:00:06.3]} 41... Kh7
{[%clk 0:00:05.9]} 42. Kg3 {[%clk 0:00:06.8]} 42... Kg8 {[%clk 0:00:06.1]} 43.
f4 {[%clk 0:00:07.3]} 43... g5 {[%clk 0:00:06]} 44. f5 {[%clk 0:00:07.5]} 44...
Kf8 {[%clk 0:00:05.5]} 45. f6 {[%clk 0:00:07.9]} 45... Qc5 {[%clk 0:00:03.6]}
46. e7+ {[%clk 0:00:07.8]} 46... Ke8 {[%clk 0:00:03.7]} 47. Qxc5 {[%clk
0:00:08.2]} 47... bxc5 {[%clk 0:00:03.7]} 48. Kf3 {[%clk 0:00:08.6]} 48... Kf7
{[%clk 0:00:03.3]} 49. Ke4 {[%clk 0:00:08.9]} 49... a4 {[%clk 0:00:02.9]} 50.
Kd5 {[%clk 0:00:08.9]} 50... c4 {[%clk 0:00:03]} 51. Kxc4 {[%clk 0:00:09.1]}
51... h5 {[%clk 0:00:02.8]} 52. gxh5 {[%clk 0:00:09.3]} 52... g4 {[%clk
0:00:03.4]} 53. Kd3 {[%clk 0:00:09.6]} 53... g3 {[%clk 0:00:04.3]} 54. Ke2
{[%clk 0:00:10]} 54... g2 {[%clk 0:00:05.2]} 55. Kf2 {[%clk 0:00:10.5]} 55...
g1=Q+ {[%clk 0:00:05.8]} 56. Kxg1 {[%clk 0:00:10.8]} 56... Ke8 {[%clk
0:00:04.6]} 57. Kf2 {[%clk 0:00:11.3]} 57... Kf7 {[%clk 0:00:04.9]} 58. Ke3
{[%clk 0:00:12]} 58... Ke8 {[%clk 0:00:05.8]} 59. Kf4 {[%clk 0:00:12.6]} 59...
Kf7 {[%clk 0:00:06.7]} 60. Kf5 {[%clk 0:00:12.9]} 60... Ke8 {[%clk 0:00:07.6]}
61. h6 {[%clk 0:00:13]} 61... Kf7 {[%clk 0:00:08.5]} 62. h7 {[%clk 0:00:13]}
62... Ke8 {[%clk 0:00:09.4]} 63. h8=Q+ {[%clk 0:00:13.3]} 63... Kf7 {[%clk
0:00:10.3]} 64. Qg7+ {[%clk 0:00:13.5]} 64... Ke8 {[%clk 0:00:11.2]} 65. Qf8+
{[%clk 0:00:14]} 65... Kd7 {[%clk 0:00:10.2]} 66. e8=Q+ {[%clk 0:00:14.9]} 66...
Kc7 {[%clk 0:00:08.8]} 67. Qc8+ {[%clk 0:00:14]} 67... Kb6 {[%clk 0:00:08.7]}
68. Qfd8+ {[%clk 0:00:14.1]} 68... Ka7 {[%clk 0:00:08.4]} 69. Qdc7# {[%clk
0:00:14.1]} 1-0